[Event "*** Titled Tuesday Blitz"]
[Site "Chess.com"]
[Date "2021.02.02"]
[Round "5"]
[White "LyonBeast"]
[Black "igorkovalenko"]
[Result "1/2-1/2"]
[WhiteElo "3099"]
[BlackElo "2882"]
[TimeControl "180+1"]
[EndTime "10:59:58 PST"]
[Termination "Game drawn by repetition"]

1. c4 {[%clk 0:03:00.9]} 1... c5 {[%clk 0:02:55.9]} 2. g3 {[%clk 0:02:53.6]}
2... g6 {[%clk 0:02:55.4]} 3. Bg2 {[%clk 0:02:53.3]} 3... Bg7 {[%clk 0:02:55.8]}
4. Nc3 {[%clk 0:02:49.8]} 4... Nc6 {[%clk 0:02:56.2]} 5. Nf3 {[%clk 0:02:48.6]}
5... d6 {[%clk 0:02:54.6]} 6. O-O {[%clk 0:02:48.3]} 6... Qd7 {[%clk 0:02:52.2]}
7. a3 {[%clk 0:02:42.6]} 7... b6 {[%clk 0:02:52]} 8. e3 {[%clk 0:02:37.5]} 8...
Bxc3 {[%clk 0:02:31.3]} 9. bxc3 {[%clk 0:02:37.6]} 9... Bb7 {[%clk 0:02:30.4]}
10. d3 {[%clk 0:02:37.1]} 10... f5 {[%clk 0:02:23.1]} 11. e4 {[%clk 0:02:28.6]}
11... Nf6 {[%clk 0:02:16.7]} 12. Re1 {[%clk 0:02:26.9]} 12... fxe4 {[%clk
0:02:13.5]} 13. dxe4 {[%clk 0:02:26.7]} 13... e5 {[%clk 0:02:10.1]} 14. Nd2
{[%clk 0:02:22.9]} 14... Na5 {[%clk 0:02:07.2]} 15. Nf1 {[%clk 0:02:12.1]} 15...
Nxc4 {[%clk 0:02:00.1]} 16. Bg5 {[%clk 0:02:12]} 16... O-O {[%clk 0:01:56.5]}
17. Qb3 {[%clk 0:02:11.1]} 17... b5 {[%clk 0:01:32.3]} 18. a4 {[%clk 0:02:01.4]}
18... a6 {[%clk 0:01:26.1]} 19. axb5 {[%clk 0:02:01.4]} 19... axb5 {[%clk
0:01:27]} 20. Rxa8 {[%clk 0:02:00.6]} 20... Bxa8 {[%clk 0:01:27.9]} 21. Bxf6
{[%clk 0:01:51.1]} 21... Rxf6 {[%clk 0:01:28.8]} 22. Ne3 {[%clk 0:01:51]} 22...
Kg7 {[%clk 0:01:17.2]} 23. Nxc4 {[%clk 0:01:50.2]} 23... bxc4 {[%clk 0:01:18.1]}
24. Qxc4 {[%clk 0:01:50.6]} 24... Qf7 {[%clk 0:01:13]} 25. Qe2 {[%clk 0:01:50]}
25... Bc6 {[%clk 0:01:10.1]} 26. h4 {[%clk 0:01:48.7]} 26... Bd7 {[%clk
0:01:08.1]} 27. Rb1 {[%clk 0:01:45.4]} 27... h5 {[%clk 0:00:56.6]} 28. Rb7
{[%clk 0:01:43.3]} 28... Qe6 {[%clk 0:00:56]} 29. Qd2 {[%clk 0:01:37.1]} 29...
Rf7 {[%clk 0:00:51.5]} 30. Rb6 {[%clk 0:01:37.3]} 30... Rf6 {[%clk 0:00:51.7]}
31. Bf1 {[%clk 0:01:35.4]} 31... Bc8 {[%clk 0:00:45.9]} 32. Rb8 {[%clk
0:01:21.5]} 32... Rf7 {[%clk 0:00:37.8]} 33. Rb6 {[%clk 0:01:09.6]} 33... Rf6
{[%clk 0:00:37.7]} 34. Be2 {[%clk 0:01:10]} 34... Qe7 {[%clk 0:00:30.4]} 35. Qg5
{[%clk 0:01:04.1]} 35... Qc7 {[%clk 0:00:29.7]} 36. Rb1 {[%clk 0:01:01.1]} 36...
Qc6 {[%clk 0:00:24.3]} 37. Qe3 {[%clk 0:00:50.3]} 37... Bb7 {[%clk 0:00:22.6]}
38. f3 {[%clk 0:00:45.6]} 38... Bc8 {[%clk 0:00:16.8]} 39. Qd2 {[%clk
0:00:41.6]} 39... Qd7 {[%clk 0:00:15.8]} 40. Rb8 {[%clk 0:00:36.7]} 40... Qh3
{[%clk 0:00:15.5]} 41. Qg5 {[%clk 0:00:36.3]} 41... Rf7 {[%clk 0:00:12.5]} 42.
Bf1 {[%clk 0:00:30]} 42... Qe6 {[%clk 0:00:12.3]} 43. Qe3 {[%clk 0:00:29.7]}
43... Rc7 {[%clk 0:00:10.6]} 44. Rb6 {[%clk 0:00:28.9]} 44... Rb7 {[%clk
0:00:10]} 45. Rxb7+ {[%clk 0:00:25.1]} 45... Bxb7 {[%clk 0:00:10.9]} 46. Qd2
{[%clk 0:00:20.2]} 46... Bc6 {[%clk 0:00:10]} 47. Be2 {[%clk 0:00:18.6]} 47...
d5 {[%clk 0:00:10.2]} 48. exd5 {[%clk 0:00:18.7]} 48... Qxd5 {[%clk 0:00:11.1]}
49. Qg5 {[%clk 0:00:16]} 49... Qd6 {[%clk 0:00:11]} 50. Kf2 {[%clk 0:00:14.6]}
50... Qf6 {[%clk 0:00:07.9]} 51. Qe3 {[%clk 0:00:14.6]} 51... Qd6 {[%clk
0:00:07.6]} 52. g4 {[%clk 0:00:13.3]} 52... hxg4 {[%clk 0:00:07]} 53. fxg4
{[%clk 0:00:14.2]} 53... Qf6+ {[%clk 0:00:06.9]} 54. Kg3 {[%clk 0:00:14]} 54...
e4 {[%clk 0:00:07.3]} 55. h5 {[%clk 0:00:09.1]} 55... Qe5+ {[%clk 0:00:06.5]}
56. Kg2 {[%clk 0:00:08.8]} 56... gxh5 {[%clk 0:00:06.4]} 57. gxh5 {[%clk
0:00:09.7]} 57... Qf5 {[%clk 0:00:03.4]} 58. Kg3 {[%clk 0:00:08.5]} 58... Qe5+
{[%clk 0:00:03.5]} 59. Kh4 {[%clk 0:00:07]} 59... Qh2+ {[%clk 0:00:02.7]} 60.
Kg5 {[%clk 0:00:07.2]} 60... Qe5+ {[%clk 0:00:02.7]} 61. Kh4 {[%clk 0:00:07.7]}
61... Qh2+ {[%clk 0:00:03]} 62. Kg5 {[%clk 0:00:08.2]} 62... Qe5+ {[%clk
0:00:03.5]} 63. Kh4 {[%clk 0:00:08.9]} 1/2-1/2

[Event "*** Titled Tuesday Blitz"]
[Site "Chess.com"]
[Date "2021.02.02"]
[Round "5"]
[White "Taktikmonster"]
[Black "Larciano"]
[Result "1-0"]
[WhiteElo "2297"]
[BlackElo "1683"]
[TimeControl "180+1"]
[EndTime "11:00:01 PST"]
[Termination "Taktikmonster won on time"]

1. e4 {[%clk 0:02:50.5]} 1... e5 {[%clk 0:02:59.5]} 2. Nf3 {[%clk 0:02:49]} 2...
Nc6 {[%clk 0:02:59.7]} 3. Bc4 {[%clk 0:02:49.1]} 3... Nf6 {[%clk 0:02:59.7]} 4.
d3 {[%clk 0:02:48.3]} 4... Bc5 {[%clk 0:02:59.7]} 5. c3 {[%clk 0:02:46.8]} 5...
d6 {[%clk 0:02:59.3]} 6. O-O {[%clk 0:02:45.3]} 6... a6 {[%clk 0:02:59.4]} 7.
Nbd2 {[%clk 0:02:43.5]} 7... Ba7 {[%clk 0:02:59.2]} 8. Bb3 {[%clk 0:02:43.1]}
8... O-O {[%clk 0:02:59.2]} 9. h3 {[%clk 0:02:43.6]} 9... Nh5 {[%clk 0:02:55.2]}
10. Nc4 {[%clk 0:02:36.2]} 10... Nf4 {[%clk 0:02:50.9]} 11. Ne3 {[%clk
0:02:36.2]} 11... Qf6 {[%clk 0:02:51]} 12. Nd5 {[%clk 0:02:35.9]} 12... Nxd5
{[%clk 0:02:51.2]} 13. exd5 {[%clk 0:02:36.8]} 13... Nb8 {[%clk 0:02:51.1]} 14.
d4 {[%clk 0:02:36.7]} 14... exd4 {[%clk 0:02:50.5]} 15. cxd4 {[%clk 0:02:37.6]}
15... Nd7 {[%clk 0:02:48.1]} 16. Bc2 {[%clk 0:02:27.5]} 16... h6 {[%clk
0:02:26.9]} 17. Qd3 {[%clk 0:02:26.8]} 17... Qg6 {[%clk 0:02:23]} 18. Qxg6
{[%clk 0:02:15.4]} 18... fxg6 {[%clk 0:02:23.9]} 19. Bxg6 {[%clk 0:02:15.6]}
19... Nf6 {[%clk 0:02:20.6]} 20. Be3 {[%clk 0:02:07.6]} 20... Nxd5 {[%clk
0:02:18.4]} 21. Rac1 {[%clk 0:02:08.1]} 21... Bxh3 {[%clk 0:02:00.7]} 22. Be4
{[%clk 0:01:50.2]} 22... Be6 {[%clk 0:01:50]} 23. Bxd5 {[%clk 0:01:29.4]} 23...
Bxd5 {[%clk 0:01:50.1]} 24. Rxc7 {[%clk 0:01:30]} 24... Bb6 {[%clk 0:01:37.1]}
25. Rd7 {[%clk 0:01:22.5]} 25... Rad8 {[%clk 0:01:29.9]} 26. Rxd8 {[%clk
0:01:22.7]} 26... Bxd8 {[%clk 0:01:26.2]} 27. Nd2 {[%clk 0:01:18.2]} 27... Bxa2
{[%clk 0:01:15.2]} 28. b3 {[%clk 0:01:07]} 28... Ba5 {[%clk 0:01:14.9]} 29. Nc4
{[%clk 0:01:06]} 29... Bb4 {[%clk 0:00:49.8]} 30. Nb6 {[%clk 0:00:58.5]} 30...
a5 {[%clk 0:00:33.5]} 31. Nd5 {[%clk 0:00:42.5]} 31... Bxb3 {[%clk 0:00:32.3]}
32. Nxb4 {[%clk 0:00:42.5]} 32... axb4 {[%clk 0:00:33.2]} 33. Rb1 {[%clk
0:00:42.8]} 33... Bd5 {[%clk 0:00:33.2]} 34. Rxb4 {[%clk 0:00:43.7]} 34... Bc6
{[%clk 0:00:32.5]} 35. f3 {[%clk 0:00:34.8]} 35... Ra8 {[%clk 0:00:32.1]} 36.
Bf4 {[%clk 0:00:33.5]} 36... d5 {[%clk 0:00:31]} 37. Be5 {[%clk 0:00:32.7]}
37... Ra1+ {[%clk 0:00:24.7]} 38. Kf2 {[%clk 0:00:31.9]} 38... Kf7 {[%clk
0:00:23.9]} 39. f4 {[%clk 0:00:28]} 39... g5 {[%clk 0:00:23]} 40. fxg5 {[%clk
0:00:28.6]} 40... hxg5 {[%clk 0:00:23.9]} 41. Rb3 {[%clk 0:00:28.6]} 41... g4
{[%clk 0:00:22.8]} 42. Kg3 {[%clk 0:00:24.5]} 42... Rg1 {[%clk 0:00:18.9]} 43.
Rb2 {[%clk 0:00:24.2]} 43... Ke6 {[%clk 0:00:16.1]} 44. Kxg4 {[%clk 0:00:24.1]}
44... Kf7 {[%clk 0:00:14.7]} 45. Rf2+ {[%clk 0:00:21.9]} 45... Kg6 {[%clk
0:00:13]} 46. Kf4 {[%clk 0:00:18.4]} 46... Rh1 {[%clk 0:00:08.7]} 47. g4 {[%clk
0:00:18.1]} 47... Rg1 {[%clk 0:00:08.5]} 48. Rh2 {[%clk 0:00:17.2]} 48... Kf7
{[%clk 0:00:05.8]} 49. Rh6 {[%clk 0:00:15.4]} 49... Kg8 {[%clk 0:00:05.4]} 50.
g5 {[%clk 0:00:14.5]} 50... Rf1+ {[%clk 0:00:04.9]} 51. Kg4 {[%clk 0:00:14.4]}
51... Bd7+ {[%clk 0:00:04.2]} 52. Kg3 {[%clk 0:00:14.2]} 52... Rg1+ {[%clk
0:00:04.3]} 53. Kf4 {[%clk 0:00:14.5]} 53... Rf1+ {[%clk 0:00:04.4]} 54. Ke3
{[%clk 0:00:13.3]} 54... Rg1 {[%clk 0:00:04.5]} 55. Bf6 {[%clk 0:00:09.6]} 55...
Re1+ {[%clk 0:00:04.2]} 56. Kf4 {[%clk 0:00:08.8]} 56... Rf1+ {[%clk 0:00:03.9]}
57. Ke5 {[%clk 0:00:08.1]} 57... Bc6 {[%clk 0:00:03]} 58. Rh8+ {[%clk
0:00:07.5]} 58... Kf7 {[%clk 0:00:01.8]} 59. Rh7+ {[%clk 0:00:08.4]} 59... Kg8
{[%clk 0:00:01.9]} 60. Rg7+ {[%clk 0:00:08.4]} 60... Kf8 {[%clk 0:00:01.8]} 61.
g6 {[%clk 0:00:08.5]} 1-0

[Event "*** Titled Tuesday Blitz"]
[Site "Chess.com"]
[Date "2021.02.02"]
[Round "5"]
[White "GelmanAlexander"]
[Black "SergeiAza"]
[Result "1-0"]
[WhiteElo "2587"]
[BlackElo "2775"]
[TimeControl "180+1"]
[EndTime "11:00:03 PST"]
[Termination "GelmanAlexander won on time"]

1. d4 {[%clk 0:03:00.9]} 1... f5 {[%clk 0:02:59.7]} 2. Nc3 {[%clk 0:02:59.6]}
2... Nf6 {[%clk 0:02:53.5]} 3. Bf4 {[%clk 0:02:57.7]} 3... d5 {[%clk 0:02:50.7]}
4. Nb5 {[%clk 0:02:50.4]} 4... Na6 {[%clk 0:02:48.8]} 5. e3 {[%clk 0:02:50.5]}
5... c6 {[%clk 0:02:42.5]} 6. Nc3 {[%clk 0:02:49.7]} 6... Nb8 {[%clk 0:02:35.6]}
7. Nf3 {[%clk 0:02:47]} 7... e6 {[%clk 0:02:35.5]} 8. Bd3 {[%clk 0:02:46.8]}
8... Bd6 {[%clk 0:02:31.9]} 9. Ne2 {[%clk 0:02:46.2]} 9... O-O {[%clk
0:02:30.5]} 10. O-O {[%clk 0:02:44.4]} 10... b6 {[%clk 0:02:28.4]} 11. c4 {[%clk
0:02:40.7]} 11... Ba6 {[%clk 0:02:26.1]} 12. Rc1 {[%clk 0:02:37.8]} 12... Qe7
{[%clk 0:02:19.4]} 13. h3 {[%clk 0:02:16.3]} 13... Nbd7 {[%clk 0:02:07.4]} 14.
Bxd6 {[%clk 0:02:08.6]} 14... Qxd6 {[%clk 0:02:02.5]} 15. c5 {[%clk 0:02:09.2]}
15... bxc5 {[%clk 0:01:58.4]} 16. Bxa6 {[%clk 0:02:07.3]} 16... c4 {[%clk
0:01:58.3]} 17. b3 {[%clk 0:01:39.1]} 17... Rab8 {[%clk 0:01:49.6]} 18. bxc4
{[%clk 0:01:34.8]} 18... Qa3 {[%clk 0:01:47.4]} 19. cxd5 {[%clk 0:01:23]} 19...
Qxa6 {[%clk 0:01:47.4]} 20. dxe6 {[%clk 0:01:04.3]} 20... Nb6 {[%clk 0:01:46]}
21. Rxc6 {[%clk 0:01:02.1]} 21... Qxa2 {[%clk 0:01:42.3]} 22. Nf4 {[%clk
0:01:00.1]} 22... Nbd5 {[%clk 0:01:36.7]} 23. Nxd5 {[%clk 0:00:53.8]} 23... Qxd5
{[%clk 0:01:35.7]} 24. Qc2 {[%clk 0:00:54.4]} 24... Rfe8 {[%clk 0:01:28.2]} 25.
Ra1 {[%clk 0:00:47.2]} 25... Rxe6 {[%clk 0:00:49.8]} 26. Rxe6 {[%clk 0:00:40.2]}
26... Qxe6 {[%clk 0:00:49.7]} 27. Rxa7 {[%clk 0:00:40.8]} 27... Rc8 {[%clk
0:00:17.4]} 28. Qa2 {[%clk 0:00:32.1]} 28... Qxa2 {[%clk 0:00:15]} 29. Rxa2
{[%clk 0:00:33]} 29... Rc1+ {[%clk 0:00:14.6]} 30. Kh2 {[%clk 0:00:33.6]} 30...
Ne4 {[%clk 0:00:15.3]} 31. Ne5 {[%clk 0:00:31.5]} 31... g5 {[%clk 0:00:14.8]}
32. f3 {[%clk 0:00:29]} 32... Nc3 {[%clk 0:00:12.2]} 33. Ra8+ {[%clk 0:00:26.9]}
33... Kg7 {[%clk 0:00:12.7]} 34. Ra7+ {[%clk 0:00:27.3]} 34... Kg8 {[%clk
0:00:11.5]} 35. Rc7 {[%clk 0:00:26.3]} 35... h5 {[%clk 0:00:11.5]} 36. h4 {[%clk
0:00:20.7]} 36... gxh4 {[%clk 0:00:10.2]} 37. Ng6 {[%clk 0:00:17.7]} 37... h3
{[%clk 0:00:09.8]} 38. gxh3 {[%clk 0:00:13.5]} 38... Rc2+ {[%clk 0:00:09.8]} 39.
Kh1 {[%clk 0:00:13.9]} 39... Rc1+ {[%clk 0:00:10]} 40. Kg2 {[%clk 0:00:14.2]}
40... Rc2+ {[%clk 0:00:10.6]} 41. Kf1 {[%clk 0:00:14]} 41... Nd1 {[%clk
0:00:10.9]} 42. Rxc2 {[%clk 0:00:12.1]} 42... Nxe3+ {[%clk 0:00:11.2]} 43. Ke2
{[%clk 0:00:11.8]} 43... Nxc2 {[%clk 0:00:12.1]} 44. Kd3 {[%clk 0:00:12.1]}
44... Ne1+ {[%clk 0:00:11.6]} 45. Ke3 {[%clk 0:00:11]} 45... Nc2+ {[%clk
0:00:11.7]} 46. Kd3 {[%clk 0:00:11.3]} 46... Ne1+ {[%clk 0:00:12]} 47. Ke2
{[%clk 0:00:08.1]} 47... Nc2 {[%clk 0:00:12.2]} 48. d5 {[%clk 0:00:06.9]} 48...
Kf7 {[%clk 0:00:11.8]} 49. Nf4 {[%clk 0:00:06.4]} 49... h4 {[%clk 0:00:11.3]}
50. Kd3 {[%clk 0:00:05.7]} 50... Ne1+ {[%clk 0:00:10]} 51. Ke3 {[%clk
0:00:06.2]} 51... Nc2+ {[%clk 0:00:09.1]} 52. Kd3 {[%clk 0:00:04.6]} 52... Ne1+
{[%clk 0:00:09.2]} 53. Ke2 {[%clk 0:00:05.3]} 53... Nc2 {[%clk 0:00:09]} 54. Ng2
{[%clk 0:00:05.5]} 54... Kf6 {[%clk 0:00:08.3]} 55. Nxh4 {[%clk 0:00:05.5]}
55... Ke5 {[%clk 0:00:08.9]} 56. Ng6+ {[%clk 0:00:04.3]} 56... Kxd5 {[%clk
0:00:08.4]} 57. h4 {[%clk 0:00:04.6]} 57... Nd4+ {[%clk 0:00:06.7]} 58. Ke3
{[%clk 0:00:05]} 58... Ne6 {[%clk 0:00:06.4]} 59. Nf4+ {[%clk 0:00:05.2]} 59...
Nxf4 {[%clk 0:00:05]} 60. Kxf4 {[%clk 0:00:06.1]} 60... Ke6 {[%clk 0:00:05.9]}
61. Kg5 {[%clk 0:00:06.5]} 1-0

[Event "*** Titled Tuesday Blitz"]
[Site "Chess.com"]
[Date "2021.02.02"]
[Round "5"]
[White "Machidon"]
[Black "Alexsur1981"]
[Result "0-1"]
[WhiteElo "2554"]
[BlackElo "2849"]
[TimeControl "180+1"]
[EndTime "11:00:05 PST"]
[Termination "Alexsur1981 won by resignation"]

1. d4 {[%clk 0:03:00.9]} 1... d6 {[%clk 0:02:58]} 2. e4 {[%clk 0:02:59.5]} 2...
g6 {[%clk 0:02:58]} 3. Nc3 {[%clk 0:02:59.8]} 3... Bg7 {[%clk 0:02:58.4]} 4. Bg5
{[%clk 0:03:00.3]} 4... a6 {[%clk 0:02:57.1]} 5. Nf3 {[%clk 0:02:59.3]} 5... b5
{[%clk 0:02:56.6]} 6. Bd3 {[%clk 0:02:59.2]} 6... Bb7 {[%clk 0:02:55.5]} 7. a4
{[%clk 0:02:58.3]} 7... b4 {[%clk 0:02:54.3]} 8. Ne2 {[%clk 0:02:58.8]} 8... Nd7
{[%clk 0:02:51]} 9. a5 {[%clk 0:02:56.7]} 9... c5 {[%clk 0:02:48.7]} 10. c3
{[%clk 0:02:56.9]} 10... h6 {[%clk 0:02:38]} 11. Be3 {[%clk 0:02:50.9]} 11...
bxc3 {[%clk 0:02:36.7]} 12. bxc3 {[%clk 0:02:51.8]} 12... cxd4 {[%clk 0:02:36]}
13. cxd4 {[%clk 0:02:52.7]} 13... Ngf6 {[%clk 0:02:35.2]} 14. Ng3 {[%clk
0:02:52.8]} 14... O-O {[%clk 0:02:31.6]} 15. O-O {[%clk 0:02:52.2]} 15... d5
{[%clk 0:02:25.2]} 16. e5 {[%clk 0:02:51.9]} 16... Ne4 {[%clk 0:02:25.7]} 17.
Qb1 {[%clk 0:02:18.9]} 17... Rb8 {[%clk 0:02:22.6]} 18. Nxe4 {[%clk 0:02:17.8]}
18... dxe4 {[%clk 0:02:23]} 19. Bxe4 {[%clk 0:02:18.7]} 19... Bxe4 {[%clk
0:02:10.4]} 20. Qxe4 {[%clk 0:02:19.6]} 20... Rb5 {[%clk 0:02:10.1]} 21. e6
{[%clk 0:02:16.3]} 21... f5 {[%clk 0:02:06.2]} 22. Qc2 {[%clk 0:01:55.3]} 22...
Nb8 {[%clk 0:02:01.5]} 23. Rfc1 {[%clk 0:01:30.8]} 23... Qd5 {[%clk 0:01:26.6]}
24. Rab1 {[%clk 0:01:05.1]} 24... Rxb1 {[%clk 0:01:05.6]} 25. Rxb1 {[%clk
0:01:06]} 25... Qxe6 {[%clk 0:01:05.9]} 26. Qc7 {[%clk 0:01:05.3]} 26... Qd6
{[%clk 0:01:04.3]} 27. Qxd6 {[%clk 0:00:58.9]} 27... exd6 {[%clk 0:01:05.2]} 28.
Rb6 {[%clk 0:00:59]} 28... Rd8 {[%clk 0:01:05.3]} 29. Bf4 {[%clk 0:00:51.1]}
29... Bf8 {[%clk 0:01:04.7]} 30. h4 {[%clk 0:00:51.7]} 30... Kf7 {[%clk
0:00:59.2]} 31. d5 {[%clk 0:00:48.9]} 31... Nd7 {[%clk 0:00:59.5]} 32. Rxa6
{[%clk 0:00:47.8]} 32... Nf6 {[%clk 0:01:00.1]} 33. Ra7+ {[%clk 0:00:39.3]}
33... Ke8 {[%clk 0:01:00]} 34. Nd4 {[%clk 0:00:36.6]} 34... Nxd5 {[%clk
0:00:59.9]} 35. Ne6 {[%clk 0:00:35.3]} 35... Rb8 {[%clk 0:00:55.2]} 36. Nc7+
{[%clk 0:00:34.2]} 36... Nxc7 {[%clk 0:00:54.2]} 37. Rxc7 {[%clk 0:00:35.1]}
37... Rb1+ {[%clk 0:00:51.5]} 38. Kh2 {[%clk 0:00:34.9]} 38... Ra1 {[%clk
0:00:51.4]} 39. Bd2 {[%clk 0:00:29.2]} 39... Be7 {[%clk 0:00:50.2]} 40. g3
{[%clk 0:00:24]} 40... g5 {[%clk 0:00:48.7]} 41. hxg5 {[%clk 0:00:23.4]} 41...
hxg5 {[%clk 0:00:49.6]} 42. Kg2 {[%clk 0:00:18.7]} 42... Ra2 {[%clk 0:00:47.2]}
43. Bc3 {[%clk 0:00:15.4]} 43... g4 {[%clk 0:00:46.8]} 44. Kf1 {[%clk
0:00:13.7]} 44... Bd8 {[%clk 0:00:41.5]} 45. Ra7 {[%clk 0:00:13.3]} 45... d5
{[%clk 0:00:35.9]} 46. Ra6 {[%clk 0:00:06.6]} 46... Kd7 {[%clk 0:00:33]} 47. Bb4
{[%clk 0:00:06.7]} 47... Bc7 {[%clk 0:00:18.9]} 48. Rf6 {[%clk 0:00:04.9]} 48...
Ra4 {[%clk 0:00:18.8]} 49. Be1 {[%clk 0:00:04.1]} 49... Bxa5 {[%clk 0:00:18.1]}
50. Bxa5 {[%clk 0:00:03.6]} 50... Rxa5 {[%clk 0:00:19]} 51. Rxf5 {[%clk
0:00:04]} 51... Kc6 {[%clk 0:00:18.5]} 52. Rf4 {[%clk 0:00:04]} 52... Kc5 {[%clk
0:00:18.9]} 53. Rxg4 {[%clk 0:00:04.2]} 53... Ra1+ {[%clk 0:00:19.5]} 54. Kg2
{[%clk 0:00:04.3]} 54... d4 {[%clk 0:00:19.9]} 55. Rg5+ {[%clk 0:00:04.7]} 55...
Kc4 {[%clk 0:00:19.8]} 56. Rg8 {[%clk 0:00:05.6]} 56... d3 {[%clk 0:00:20.1]}
57. Rc8+ {[%clk 0:00:06.1]} 57... Kb3 {[%clk 0:00:20.3]} 58. Rd8 {[%clk
0:00:06.2]} 58... Kc3 {[%clk 0:00:20.6]} 59. g4 {[%clk 0:00:06.1]} 59... d2
{[%clk 0:00:20.6]} 60. Rc8+ {[%clk 0:00:06.2]} 60... Kb4 {[%clk 0:00:19.6]} 61.
Rb8+ {[%clk 0:00:05.9]} 61... Kc5 {[%clk 0:00:19.3]} 62. Rc8+ {[%clk 0:00:06.1]}
62... Kb6 {[%clk 0:00:18.9]} 63. Rd8 {[%clk 0:00:06.3]} 63... d1=Q {[%clk
0:00:18.8]} 64. Rxd1 {[%clk 0:00:07.2]} 64... Rxd1 {[%clk 0:00:19]} 65. g5
{[%clk 0:00:06.4]} 65... Kc6 {[%clk 0:00:19.4]} 66. Kg3 {[%clk 0:00:05]} 66...
Kd6 {[%clk 0:00:18.5]} 0-1

[Event "*** Titled Tuesday Blitz"]
[Site "Chess.com"]
[Date "2021.02.02"]
[Round "5"]
[White "Lady_Nika"]
[Black "anantone"]
[Result "0-1"]
[WhiteElo "2390"]
[BlackElo "2539"]
[TimeControl "180+1"]
[EndTime "11:00:05 PST"]
[Termination "anantone won by checkmate"]

1. d4 {[%clk 0:02:38.4]} 1... Nf6 {[%clk 0:02:58.5]} 2. e3 {[%clk 0:02:37.6]}
2... g6 {[%clk 0:02:47.8]} 3. f4 {[%clk 0:02:37.3]} 3... Bg7 {[%clk 0:02:47.2]}
4. Nf3 {[%clk 0:02:37.5]} 4... O-O {[%clk 0:02:46.5]} 5. c3 {[%clk 0:02:37.4]}
5... d6 {[%clk 0:02:46]} 6. Be2 {[%clk 0:02:37.4]} 6... b6 {[%clk 0:02:44.8]} 7.
O-O {[%clk 0:02:37.4]} 7... Bb7 {[%clk 0:02:44.8]} 8. Na3 {[%clk 0:02:27.2]}
8... c5 {[%clk 0:02:44.3]} 9. Nc2 {[%clk 0:02:26.5]} 9... Nbd7 {[%clk
0:02:38.7]} 10. b3 {[%clk 0:02:26.5]} 10... Ne4 {[%clk 0:02:33.3]} 11. Bb2
{[%clk 0:02:25.8]} 11... Rc8 {[%clk 0:02:24.7]} 12. Rc1 {[%clk 0:02:21.6]} 12...
Ndf6 {[%clk 0:02:10.8]} 13. c4 {[%clk 0:02:20.6]} 13... cxd4 {[%clk 0:02:08]}
14. exd4 {[%clk 0:02:20.1]} 14... d5 {[%clk 0:02:07.9]} 15. Ne3 {[%clk
0:02:19.7]} 15... Rc7 {[%clk 0:02:02.3]} 16. Ne5 {[%clk 0:02:18.9]} 16... Qa8
{[%clk 0:01:57.8]} 17. Bf3 {[%clk 0:02:18.2]} 17... Rfc8 {[%clk 0:01:47.5]} 18.
Qe2 {[%clk 0:02:13.7]} 18... dxc4 {[%clk 0:01:42.7]} 19. bxc4 {[%clk 0:02:11.6]}
19... Nd6 {[%clk 0:01:39.5]} 20. Bxb7 {[%clk 0:02:08.1]} 20... Qxb7 {[%clk
0:01:40.4]} 21. Rc2 {[%clk 0:02:07]} 21... Qe4 {[%clk 0:01:36.8]} 22. Qf2 {[%clk
0:02:01.7]} 22... Nf5 {[%clk 0:01:30]} 23. Nxf5 {[%clk 0:02:00.9]} 23... Qxf5
{[%clk 0:01:30.9]} 24. Rfc1 {[%clk 0:02:00.5]} 24... Ne4 {[%clk 0:01:22.9]} 25.
Qe3 {[%clk 0:01:55.6]} 25... h5 {[%clk 0:01:19.2]} 26. c5 {[%clk 0:01:47.4]}
26... bxc5 {[%clk 0:01:18]} 27. dxc5 {[%clk 0:01:47.3]} 27... e6 {[%clk
0:01:07.1]} 28. c6 {[%clk 0:01:45.6]} 28... Nf6 {[%clk 0:01:05.5]} 29. Qf3
{[%clk 0:01:29.4]} 29... Nd5 {[%clk 0:01:03.2]} 30. g3 {[%clk 0:01:29.3]} 30...
g5 {[%clk 0:00:57.4]} 31. Qxh5 {[%clk 0:01:26.2]} 31... gxf4 {[%clk 0:00:53]}
32. Qxf5 {[%clk 0:01:25.9]} 32... exf5 {[%clk 0:00:53.4]} 33. gxf4 {[%clk
0:01:20.5]} 33... Nxf4 {[%clk 0:00:53.6]} 34. Rf1 {[%clk 0:01:17.6]} 34... Ng6
{[%clk 0:00:50.5]} 35. Rxf5 {[%clk 0:01:09.6]} 35... Bxe5 {[%clk 0:00:47.2]} 36.
Bxe5 {[%clk 0:01:08.1]} 36... Rxc6 {[%clk 0:00:47.5]} 37. Rxc6 {[%clk
0:01:07.2]} 37... Rxc6 {[%clk 0:00:48.4]} 38. Bd4 {[%clk 0:01:05.2]} 38... a6
{[%clk 0:00:41.5]} 39. Rf2 {[%clk 0:01:02.5]} 39... Kf8 {[%clk 0:00:26.8]} 40.
Be3 {[%clk 0:00:57.7]} 40... Ke8 {[%clk 0:00:24.4]} 41. Bg5 {[%clk 0:00:55.4]}
41... Re6 {[%clk 0:00:18.4]} 42. Rd2 {[%clk 0:00:52.4]} 42... f6 {[%clk
0:00:18.3]} 43. Bh6 {[%clk 0:00:52.1]} 43... Ne5 {[%clk 0:00:18.5]} 44. Rb2
{[%clk 0:00:48.6]} 44... Kf7 {[%clk 0:00:18]} 45. Bf4 {[%clk 0:00:43.6]} 45...
Nd3 {[%clk 0:00:17.1]} 46. Rb7+ {[%clk 0:00:43.2]} 46... Kg6 {[%clk 0:00:16.8]}
47. Bg3 {[%clk 0:00:42.3]} 47... f5 {[%clk 0:00:14.4]} 48. Rd7 {[%clk
0:00:40.8]} 48... Re3 {[%clk 0:00:13.5]} 49. Rd6+ {[%clk 0:00:40.4]} 49... Kg5
{[%clk 0:00:13.8]} 50. Kg2 {[%clk 0:00:40.1]} 50... f4 {[%clk 0:00:12.9]} 51.
Rd5+ {[%clk 0:00:35.3]} 51... Kg6 {[%clk 0:00:08.4]} 52. Rd6+ {[%clk 0:00:35]}
52... Kf5 {[%clk 0:00:08.1]} 53. Rd5+ {[%clk 0:00:31.7]} 53... Ke4 {[%clk
0:00:07.9]} 54. Bh4 {[%clk 0:00:27.6]} 54... Kxd5 {[%clk 0:00:07.2]} 55. Bf6
{[%clk 0:00:17.9]} 55... Ke4 {[%clk 0:00:07.2]} 56. Bd8 {[%clk 0:00:16.8]} 56...
Re2+ {[%clk 0:00:06.9]} 57. Kh3 {[%clk 0:00:16.2]} 57... Rxa2 {[%clk 0:00:07.8]}
58. Bb6 {[%clk 0:00:15.8]} 58... a5 {[%clk 0:00:07.4]} 59. Bg1 {[%clk
0:00:15.6]} 59... a4 {[%clk 0:00:07.2]} 60. Ba7 {[%clk 0:00:15.4]} 60... a3
{[%clk 0:00:07.4]} 61. Bb8 {[%clk 0:00:15.4]} 61... Rb2 {[%clk 0:00:07.3]} 62.
Bd6 {[%clk 0:00:15.2]} 62... a2 {[%clk 0:00:07.3]} 63. Be7 {[%clk 0:00:14.9]}
63... a1=Q {[%clk 0:00:07.2]} 64. Bf6 {[%clk 0:00:15]} 64... Qf1+ {[%clk
0:00:07]} 65. Kg4 {[%clk 0:00:15.3]} 65... Rxh2 {[%clk 0:00:07.6]} 66. Bd4
{[%clk 0:00:15]} 66... Qg2# {[%clk 0:00:07.4]} 0-1